Cogmind - Beta 10.2 @@@ ROGUE MODE // 2021.06.06 @ 02:12:55 Player: Timo Result: Destroyed by D-53 Grenadier with Mini Grenade Launcher Performance ------------- Evolutions (0) 0 Regions Visited (2) 400 Robots Destroyed (10) 50 Value Destroyed (192) 192 Prototype IDs (0) 0 Alien Tech Used (0) 0 Bonus (0) 0 TOTAL SCORE: 642 Bonus ------- None Cogmind --------- Core Integrity 0/250 Matter 300/300 Energy 99/100 System Corruption 2% Temperature Cool (0) Movement Core (50) Location -10/Mines Parts ------- > --- POWER (1) -------- (None) > --- PROPULSION (2) --- (None) > --- UTILITY (2) ------ (None) > --- WEAPON (2) ------- (None) > --- INVENTORY (4) ---- Aluminum Leg Small Storage Unit Field Recycling Unit (0) EM Pulse Gun Peak State ------------ > --- POWER ------------ Ion Engine > --- PROPULSION ------- Aluminum Leg Aluminum Leg > --- UTILITY ---------- Small Storage Unit Medium Storage Unit > --- WEAPON ----------- Light Assault Rifle Improved Light Cannon > --- INVENTORY -------- Ion Engine Light Ion Engine Aluminum Leg Aluminum Leg Small Storage Unit Signal Interpreter ECM Suite Core Shielding EM Pulse Gun Datajack [Rating: 9] Favorites ----------- Power Light Ion Engine Engine Light Ion Engine Propulsion Aluminum Leg Leg Aluminum Leg Utility Small Storage Unit Device Terrain Scanner Storage Small Storage Unit Weapon Light Assault Rifle Energy Gun Small Laser Ballistic Gun Light Assault Rifle Ballistic Cannon Improved Light Cannon Build | -11 -10 -10 ------- Run | Scr Mat Min Slots Evolved . | . . . Power . | . . . Propulsion . | . . . Utility . | . . . Weapon . | . . . Parts Attached 11 | . 11 . Power 2 | . 2 . Engine 2 | . 2 . Core . | . . . Reactor . | . . . Propulsion 2 | . 2 . Treads . | . . . Leg 2 | . 2 . Wheel . | . . . Hover . | . . . Flight . | . . . Utility 3 | . 3 . Device 1 | . 1 . Storage 2 | . 2 . Processor . | . . . Hackware . | . . . Protection . | . . . Artifact . | . . . Weapon 4 | . 4 . Energy Gun 1 | . 1 . Energy Cannon . | . . . Ballistic Gun 2 | . 2 . Ballistic Cannon 1 | . 1 . Launcher . | . . . Special Weapon . | . . . Impact Weapon . | . . . Slashing Weapon . | . . . Piercing Weapon . | . . . Special Melee Weapon . | . . . Unidentified Prototypes . | . . . Parts Lost 5 | . 3 2 Power 1 | . . 1 Propulsion . | . . . Utility 1 | . 1 . Weapon 3 | . 2 1 Highest Loss Streak 2 | . 2 2 Average Slot Usage (%) 94 | . 97 48 Engine 13 | . 14 4 Leg 27 | . 28 16 Device 1 | . 1 . Storage 24 | . 25 16 Energy Gun 2 | . 2 . Ballistic Gun 17 | . 18 4 Ballistic Cannon 6 | . 6 8 Naked Turns 31 | . . 31 Heaviest Build 22 | 9 22 20 Greatest Support 20 | 20 20 20 Greatest Overweight (x) 1 | . 1 . Average Overweight (x) . | . . . Largest Inventory Capacity 10 | . 10 10 Average Capacity 8 | . 8 7 Most Carried 10 | . 10 10 Average Carried 8 | . 8 7 Final Capacity 10 | 6 10 4 Final Carried 10 | 6 10 4 Class Distribution -------------------- 100% | Mutant Dominant Class ---------------- Mutant | -10/Materials Mutant | -10/Mines Resources | -11 -10 -10 ----------- Run | Scr Mat Min Matter Collected 348 | 200 139 9 Remotely . | . . . Salvage Created 322 | . 322 . Parts 24 | . 24 . Haulers Intercepted . | . . . Recyclers Shooed 1 | . 1 . Parts Field Recycled . | . . . Retrieved Matter . | . . . Parts Self-Destructed . | . . . Prevented . | . . . Kills | -11 -10 -10 ------- Run | Scr Mat Min Combat Hostiles Destroyed 9 | . 9 . Guns 9 | . 9 . Classes Destroyed 3 | . 3 . Recycler 1 | . 1 . Swarmer 5 | . 5 . Grunt 4 | . 4 . Best Kill Streak 3 | . 3 . Combat Bots Only 3 | . 3 . Max Kills in Single Turn 1 | . 1 . Gunslinging . | . . . Exploded . | . . . Melee . | . . . Uniques/NPCs Destroyed . | . . . Combat | -11 -10 -10 -------- Run | Scr Mat Min Damage Taken 1119 | . 568 551 Core 272 | . 81 191 Absorbed by Shields . | . . . Core Remaining (%) 100 | 100 . . Volleys Fired 46 | . 45 1 Largest 2 | . 2 2 Hottest 60 | . 60 59 Shots Fired 73 | . 71 2 Gun 69 | . 68 1 Cannon 4 | . 3 1 Launcher . | . . . Special . | . . . Kinetic 72 | . 70 2 Thermal 1 | . 1 . Explosive . | . . . Electromagnetic . | . . . Robot Hit Streak 12 | . 12 . Robot Miss Streak 4 | . 4 2 Penetration Max . | . . . Secondary Targets 1 | . 1 . Max Gunslinging Chain 1 | . 1 . Shots Hit Robots 46 | . 46 . Core Hits 25 | . 23 2 Critical Hits 1 | . 1 . Critical Kills . | . . . Critical Parts Destroyed 1 | . 1 . Melee Attacks . | . . . Impact . | . . . Slashing . | . . . Piercing . | . . . Sneak Attacks . | . . . Combat Hostiles . | . . . Follow-up Attacks . | . . . Damage Inflicted 479 | . 443 36 Guns 382 | . 382 . Cannons 78 | . 56 22 Explosions . | . . . Melee . | . . . Ramming 19 | . 5 14 Kinetic 460 | . 438 22 Thermal . | . . . Explosive . | . . . Electromagnetic . | . . . Impact . | . . . Slashing . | . . . Piercing . | . . . Highest Corruption 2 | . 2 2 Average Corruption 2 | . 2 2 Corruption Purged . | . . . Effects 1 | . 1 . Energy Discharges 1 | . 1 . Overload Shots . | . . . Overflow Damage . | . . . Projectiles . | . . . Explosions . | . . . Melee . | . . . Knockbacks 2 | . 2 . Impact . | . . . Kinetic 2 | . 2 . Secondary . | . . . Self-Inflicted Damage 3 | . 2 1 Shots . | . . . Rammed 2 | . 1 1 Targets Rammed 6 | . 1 5 Kicked 4 | . . 4 Crushed . | . . . Highest Temperature 20 | . 20 18 Average Temperature 9 | . 9 8 Received Heat Transfer 208 | . 108 100 Siege Activations . | . . . Robots Corrupted . | . . . Combat Hostiles . | . . . Parts Fried . | . . . Impact Corruptions . | . . . Robots Melted . | . . . Combat Hostiles . | . . . Parts Melted . | . . . Heat Transferred . | . . . Parts Sabotaged . | . . . Parts Stolen . | . . . Parts Stripped . | . . . Power Chain Reactions . | . . . Missiles Intercepted . | . . . Alert | -11 -10 -10 ------- Run | Scr Mat Min Peak Influence 196 | . 196 15 Initial . | . . . Average 61 | . 65 4 Maximum Alert Level . | . . . Low Security (%) 100 | . 100 100 Level 1 . | . . . Level 2 . | . . . Level 3 . | . . . Level 4 . | . . . Level 5 . | . . . High Security . | . . . Max Security . | . . . Squads Dispatched 1 | . 1 . Investigation . | . . . Extermination . | . . . Reinforcement 1 | . 1 . Assault . | . . . Garrison . | . . . Intercept . | . . . Construction Impeded . | . . . Haulers Reinforced . | . . . Stealth | -11 -10 -10 --------- Run | Scr Mat Min Distress Signals 3 | . 3 . Communications Jammed . | . . . Distress Signals . | . . . Times Spotted 49 | . 25 24 Peak Tracking Total 22 | . 6 22 Tactical Retreats 3 | . 3 . Traps | -11 -10 -10 ------- Run | Scr Mat Min Traps Triggered 2 | . 2 . Indirectly . | . . . Trap Hack Attempts . | . . . Triggered . | . . . Disarmed . | . . . Reprogrammed . | . . . Reused . | . . . Traps Extracted . | . . . Installed . | . . . Triggered . | . . . Machines | -11 -10 -10 ---------- Run | Scr Mat Min Machines Disabled . | . . . Max in Single Turn . | . . . Machines Sabotaged . | . . . Garrisons Compromised . | . . . Overloaded Fab Kills . | . . . Fab Network Shutdowns . | . . . Hacking | -11 -10 -10 --------- Run | Scr Mat Min Machines Accessed 8 | . 8 . Terminals 6 | . 6 . Fabricators . | . . . Repair Stations . | . . . Recycling Units 2 | . 2 . Scanalyzers . | . . . Garrison Access . | . . . Total Hacks 18 | . 18 . Successful 11 | . 11 . Failed 7 | . 7 . Catastrophic 3 | . 3 . Database Lockouts . | . . . Manual 5 | . 5 . Terminals 13 | . 13 . Fabricators . | . . . Repair Stations . | . . . Recycling Units 5 | . 5 . Scanalyzers . | . . . Garrison Access . | . . . Terminal Hacks 5 | . 5 . Branch Access Points 1 | . 1 . Terminal Index 1 | . 1 . Dispatch Records 1 | . 1 . Patrol Status 1 | . 1 . Investigation Status 1 | . 1 . Fabricator Hacks . | . . . Repair Station Hacks . | . . . Recycling Unit Hacks 4 | . 4 . Recycle Component 1 | . 1 . Report Inventory 3 | . 3 . Scanalyzer . | . . . Garrison Access Hacks . | . . . Unauthorized Hacks 2 | . 2 . Terminals 1 | . 1 . Assimilate 1 | . 1 . Fabricators . | . . . Repair Stations . | . . . Recycling Units 1 | . 1 . Mask 1 | . 1 . Scanalyzers . | . . . Garrison Access . | . . . Data Cores Recovered . | . . . Used . | . . . Hacking Detections 6 | . 6 . Full Trace Events . | . . . Feedback Events . | . . . Feedback Blocked . | . . . Robot Schematics Acquired . | . . . Robots Built . | . . . Matter . | . . . Time . | . . . Total Robot Build Rating . | . . . Part Schematics Acquired . | . . . Parts Built . | . . . Matter . | . . . Time . | . . . Total Part Build Rating . | . . . Parts Repaired . | . . . Time . | . . . Parts Recycled 1 | . 1 . Recycled Matter . | . . . Retrieved Matter . | . . . Retrieved Components . | . . . Parts Scanalyzed . | . . . Part Schematics Acquired . | . . . Parts Damaged . | . . . Bothacking | -11 -10 -10 ------------ Run | Scr Mat Min Used RIF Installer . | . . . Robots Hacked . | . . . Non-combat . | . . . Combat . | . . . Robot Hacks Applied . | . . . Relay Couplers Released . | . . . Robots Rewired . | . . . Allies Hacked . | . . . Hacks Repelled . | . . . Allies | -11 -10 -10 -------- Run | Scr Mat Min Total Allies . | . . . Largest Group . | . . . Highest-Rated Group . | . . . Highest-Rated Ally . | . . . Total Orders . | . . . Ally Attacks . | . . . Total Damage . | . . . Kills . | . . . Allies Corrupted . | . . . Allies Melted . | . . . Intel | -11 -10 -10 ------- Run | Scr Mat Min Robot Analysis Total . | . . . Derelict Logs Recovered . | . . . Drone Launches . | . . . Drone Recoveries . | . . . Exploration | -11 -10 -10 ------------- Run | Scr Mat Min Turns Passed 961 | . 896 65 Spaces Moved 665 | 1 592 72 Core 51 | . . 51 Treads . | . . . Legs 614 | 1 592 21 Wheels . | . . . Hover . | . . . Flight . | . . . Fastest Speed 50 | 120 120 50 Average Speed 114 | 120 120 70 Slowest Speed 150 | 120 150 120 Overloaded Moves . | . . . Propulsion Burnouts . | . . . Robots Hopped . | . . . Cave-ins Triggered . | . . . Exploration Rate (%) 32 | 2 76 19 Regions Visited 2 Branch Regions 1 Pre-discovered Areas . | . . . Known Exits Taken 1 | . 1 . Unknown Exits Taken 1 | 1 . . Scrap Searched . | . . . Spaces Dug . | . . . Terrain Destroyed . | . . . Melee . | . . . Projectile . | . . . AOE . | . . . Terrain Rammed . | . . . Walls Destroyed . | . . . Machines Disabled . | . . . Actions | -11 -10 -10 --------- Run | Scr Mat Min Total 802 | . 719 83 Wait 54 | . 49 5 Move 663 | . 591 72 Hop . | . . . Pick Up 11 | . 11 . Fast Attach 7 | . 7 . Attach 1 | . 1 . Detach 2 | . 2 . Swap 3 | . 3 . Drop 9 | . 9 . Fire 46 | . 45 1 Melee . | . . . Ram . | . . . Kick 6 | . 1 5 Crush . | . . . Escape Stasis . | . . . Rewire . | . . . Trap . | . . . Miscellaneous . | . . . Route ------- -11/Scrapyard -10/Materials (discovered 3 exits: [*Mat x2] / *Min) -10/Mines History --------- Turn | Location | Event 1 | -11/Scrapyard | Discovered new exit (range 0) 1 | -11/Scrapyard | Entered Materials 219 | -10/Materials | Discovered new exit (range 10) 308 | -10/Materials | Build established: Mutant 432 | -10/Materials | Discovered new exit (range 14) 576 | -10/Materials | Identified exit to Mines 604 | -10/Materials | Discovered new exit (range 7) 897 | -10/Materials | Entered Mines 898 | -10/Mines | Assembled infested the area 921 | -10/Mines | Core integrity fell below 50% 930 | -10/Mines | Core integrity fell below 20% 931 | -10/Mines | Released all parts (5) 962 | -10/Mines | Destroyed by D-53 Grenadier with Mini Grenade Launcher Last Messages --------------- 00917_ Knocked back. 00918_ Lgt. Ion Engine destroyed. 00925_ Kicked as-79166 out of the way. 00928_ Slammed into as-79166. 00929_ Kicked as-79166 out of the way. 00930_ Kicked as-04404 out of the way. 00931_ Released Sml. Storage Unit. 00931_ Released Aluminum Leg. 00931_ Released Med. Storage Unit. 00931_ Released Aluminum Leg. 00931_ Released Imp. Light Cannon. 00933_ C-30 ARC bursts open, deploying its payload. 00933_ D-53 Grenadier unfolds itself. 00935_ as-04404 destroyed. 00935_ as-92403 destroyed. 00935_ as-81380 destroyed. 00935_ as-42625 destroyed. 00935_ as-09597 destroyed. 00949_ The unstable cave ceiling collapses. 00956_ Acquired 9 matter. Map ----- +----------------------------------------------------+ | | | | | | | | | | | | | | | | | | | | | | | | | | | | | | | | | | | ????????????????????????????????????????????? | | ??????????????????????????????????##########? | | ??????????????????????????????????# ## | | ??????????????????????????????????# # | | ?????????????????????????????????## # | | ????????????????????????????????## | | ????????????????#####???????????# | | ???????????????## ##??????????# " | | ??????????????## @##????????## ### | | ??????????????# ##??????## ##??# | | ??????????????# =* ##????## ##???# | | ??????????????## =%! ##???# ##???## | | ???????????????## ## ##?## ##???## | | ????????????????# ?## ### #????# | | ????????????????# ??## dd #????# | | ???????????????? ????## ##????## | | ??????????????? ?????## ######??????## | | ?????????????? ??????#### ##????????????# | | ????????????? a ??????????####????????????? | | ???????????? ??????????????????????????? | | ???????????# ???????????????????????????? | | ???????????# ???????????????????????????? | | ???????????## ?????????????????????????????## | | ????????????#=??????????????????????????????? | | ????????????=???????????????????????????????? | | ????????????????????????????????????????????? | | ????????????????????????????????????????????? | | ????????????????????????????????????????????? | | ????????????????????????????????????????????? | | ????????????????????????????????????????????? | | ????????????????????????????????????????????? | | ????????????????????????????????????????????? | | ????????????????????????????????????????????? | +----------------------------------------------------+ Best States ------------- Heat Dissipation 25 Energy Generation 10 Energy Capacity 250 Matter Stores 300 Matter Capacity 300 Sight Range 16 Terrain Scan Range 14 Terrain Scan Density 10 Evasion (%) 50 Item Schematics ----------------- None Robot Schematics ------------------ None Fabricated ------------ Nothing Alien Tech Used ----------------- None Achievements -------------- None Challenges ------------ None Game ------ Seed ControlEnergyBoosters Manual? 0 Play Time 00:17:50 Cumulative 41.6 hours Start 2021.06.06 @ 01:45:45 End 2021.06.06 @ 02:12:55 Sessions 1 Manual Loads 0 Difficulty Rogue Special Mode None Game No. 38 Rogue 38 Adventurer 0 Explorer 0 Win Type - Total 0 Types 0/0/0/0/0/0/0/0/0 Lore% 29 Gallery% 36 Achievement% 24 Wizard Run 0 Options --------- ASCII 0 Keyboard 1 Movement Numpad Keybinds 0 Fullscreen 1 Font 18/SmallcapsGlow Map View 76x50 Tactical HUD 1 Map Filters NONE Filters NONE Steam 1 RUN: 34932c91-8049-4441-91eb-69e5e63e0b78